bitfinex/quotes_BTCUSD_20240613
["timestamp","ask_amount","ask_price","bid_price","bid_amount"]
[1718266758475,0.11356455,67664.0,67663.0,0.084]
[1718266759960,0.11356455,67664.0,67663.0,0.002]
[1718266760178,0.11356455,67664.0,67661.0,0.0713]
[1718266760387,0.1,67663.0,67657.0,0.16671743]
[1718266760591,0.1,67663.0,67659.0,0.0713]
[1718266760592,0.01356627,67662.0,67659.0,0.0713]
[1718266761237,0.01356627,67662.0,67657.0,0.16671743]
[1718266761437,0.01356627,67662.0,67661.0,0.001]
[1718266761637,0.10258948,67662.0,67661.0,0.001]
[1718266761926,0.21615575,67662.0,67661.0,0.001]
[1718266762113,0.21615575,67662.0,67658.0,0.02]
[1718266762321,0.12756627,67662.0,67659.0,0.001]
[1718266762958,0.02756627,67662.0,67659.0,0.00043466]
[1718266763556,0.02756627,67662.0,67659.0,0.001]
[1718266764335,0.15708604,67661.0,67659.0,0.001]
[1718266764546,0.15708604,67660.0,67659.0,0.001]
[1718266764749,0.17065122,67660.0,67659.0,0.001]
[1718266765164,0.17065122,67660.0,67659.0,0.002]
[1718266765373,0.17065122,67660.0,67654.0,0.1469]
[1718266765812,0.15708604,67659.0,67657.0,0.09051743]
[1718266766022,0.15708604,67658.0,67657.0,0.0913]
[1718266766230,0.17065122,67658.0,67657.0,0.0913]
[1718266767328,0.17065122,67658.0,67657.0,0.16181743]
[1718266767542,0.17965122,67658.0,67657.0,0.30931743]
[1718266767758,0.19165122,67658.0,67657.0,0.31031743]
[1718266767972,0.03456518,67658.0,67657.0,0.31031743]
[1718266768391,0.021,67658.0,67657.0,0.31031743]
[1718266777673,0.021,67658.0,67657.0,0.23901743]
[1718266777900,0.021,67658.0,67657.0,0.31031743]
[1718266779029,0.021,67658.0,67657.0,0.31126343]
[1718266780793,0.021,67658.0,67657.0,0.23996343]
[1718266780996,0.021,67658.0,67657.0,0.31126343]
[1718266782494,0.03458112,67658.0,67657.0,0.31126343]
[1718266782844,0.03458112,67658.0,67657.0,0.31069808]
[1718266791607,0.03458112,67658.0,67657.0,0.23939808]
[1718266792241,0.03458112,67658.0,67657.0,0.149446]
[1718266792421,0.03458112,67658.0,67657.0,0.084746]
[1718266793684,0.03458112,67658.0,67657.0,0.002946]
[1718266793844,0.13721921,67658.0,67657.0,0.002946]
[1718266794052,0.34528373,67658.0,67657.0,0.002946]
[1718266794249,0.60978127,67658.0,67657.0,0.002946]
[1718266794450,0.52129524,67658.0,67657.0,0.002946]
[1718266794653,0.35418305,67658.0,67657.0,0.002946]
[1718266795382,0.27891921,67658.0,67657.0,0.002946]
[1718266800556,0.13721921,67658.0,67657.0,0.002946]
[1718266800787,0.03458112,67658.0,67657.0,0.31229808]
[1718266801688,0.03458112,67658.0,67657.0,0.34442373]
[1718266802314,0.03458112,67658.0,67657.0,0.39442373]
[1718266802943,0.03458112,67658.0,67657.0,0.39385838]
[1718266803795,0.02258112,67658.0,67657.0,0.39285838]
[1718266804015,0.02258112,67658.0,67657.0,0.40285838]
[1718266804222,0.01558112,67658.0,67657.0,0.36029808]
[1718266804441,0.01558112,67658.0,67657.0,0.40342373]
[1718266805722,0.01558112,67658.0,67657.0,0.48359235]
[1718266805948,0.24565426,67658.0,67657.0,0.6721857]
[1718266806158,0.24565426,67658.0,67657.0,0.67216927]
[1718266806376,0.24565426,67658.0,67657.0,0.62791228]
[1718266806599,0.24565426,67658.0,67657.0,1.00830253]
[1718266806817,0.24565426,67658.0,67657.0,0.91975569]
[1718266807045,0.23207314,67658.0,67657.0,0.91975569]
[1718266807260,0.23007314,67658.0,67657.0,1.0072331]
[1718266807470,0.23007314,67658.0,67657.0,1.0092331]
[1718266807691,0.23007314,67658.0,67657.0,1.03143924]
[1718266807912,0.23007314,67658.0,67657.0,1.02075569]
[1718266808196,0.23007314,67658.0,67657.0,1.01875569]
[1718266808401,0.23007314,67658.0,67657.0,1.02575569]
[1718266808608,0.23007314,67658.0,67657.0,1.02075569]
[1718266808826,0.23007314,67658.0,67657.0,0.92075569]
[1718266809071,0.23007314,67658.0,67657.0,0.92975569]
[1718266809072,0.23107314,67658.0,67657.0,0.92975569]
[1718266809295,0.23107314,67658.0,67657.0,1.04026804]
[1718266809649,0.23107314,67658.0,67657.0,1.14026804]
[1718266810053,0.23107314,67658.0,67657.0,1.13826804]
[1718266810263,0.23107314,67658.0,67657.0,0.92775569]
[1718266810462,0.23307314,67658.0,67657.0,1.03313942]
[1718266810711,0.23307314,67658.0,67657.0,1.13313942]
[1718266810883,0.23307314,67658.0,67657.0,1.04475569]
[1718266811091,0.23307314,67658.0,67657.0,1.13313917]
[1718266812069,0.23307314,67658.0,67657.0,1.23660217]
[1718266812278,0.00086,67669.0,67657.0,1.23660217]
[1718266812279,0.00086,67669.0,67668.0,0.30555208]
[1718266812484,0.00086,67669.0,67668.0,0.91828908]
[1718266812687,0.00086,67669.0,67668.0,0.90467091]
[1718266812891,0.00086,67669.0,67668.0,1.00439391]
[1718266813182,0.00086,67669.0,67668.0,0.92361221]
[1718266813409,0.00086,67669.0,67668.0,0.95344208]
[1718266814597,0.00086,67669.0,67668.0,1.01155759]
[1718266814819,0.00086,67669.0,67668.0,0.99755759]
[1718266815230,0.00086,67669.0,67668.0,0.96744208]
[1718266815615,0.00186,67669.0,67668.0,0.98144208]
[1718266815904,0.00186,67669.0,67668.0,0.88144208]
[1718266816591,0.00186,67669.0,67668.0,0.98144208]
[1718266820553,0.00186,67669.0,67668.0,0.89898062]
[1718266820759,0.00186,67669.0,67668.0,0.98159057]
[1718266821992,0.00186,67669.0,67668.0,0.88159057]
[1718266822231,0.00186,67669.0,67668.0,0.98159057]
[1718266822970,0.00186,67669.0,67668.0,0.98131357]
[1718266824071,0.00186,67669.0,67668.0,0.88131357]
[1718266824777,0.00186,67669.0,67668.0,0.98131357]
[1718266825236,0.00186,67669.0,67668.0,1.00431357]
[1718266825454,0.00186,67669.0,67668.0,0.90431357]
[1718266825652,0.00186,67669.0,67668.0,1.00425779]
[1718266825867,0.00186,67669.0,67668.0,0.90425779]
[1718266827545,0.00186,67669.0,67668.0,1.00425779]
[1718266828162,0.00186,67669.0,67668.0,0.92230987]
[1718266828402,0.00186,67669.0,67668.0,0.92295893]
[1718266831564,0.00186,67669.0,67668.0,0.88995893]
[1718266831961,0.00186,67669.0,67668.0,0.66089992]
[1718266832431,0.00086,67669.0,67668.0,0.64689992]
[1718266832645,0.00086,67669.0,67668.0,0.72990215]
[1718266833053,0.00086,67669.0,67668.0,0.72961952]
[1718266833819,0.00086,67669.0,67668.0,0.71561952]
[1718266833982,0.00186,67669.0,67668.0,0.72961952]
[1718266834182,0.00186,67669.0,67668.0,0.74361952]
[1718266834382,0.07846,67669.0,67668.0,0.48510525]
[1718266834586,0.07846,67669.0,67668.0,0.55640525]
[1718266834840,0.09076456,67669.0,67668.0,0.57040525]
[1718266835344,0.08976456,67669.0,67668.0,0.03212565]
[1718266835547,0.15306456,67669.0,67668.0,0.03212565]
[1718266835775,0.15306456,67669.0,67668.0,0.04612565]
[1718266835981,0.15406456,67669.0,67668.0,0.06012565]
[1718266837344,0.15406456,67669.0,67668.0,0.11664308]
[1718266837542,0.15406456,67669.0,67668.0,0.04612565]
[1718266837951,0.15406456,67669.0,67668.0,0.05812565]
[1718266838149,0.15406456,67669.0,67668.0,0.04612565]
[1718266838321,0.15306456,67669.0,67668.0,0.03212565]
[1718266838943,0.15306456,67669.0,67668.0,0.03712565]
[1718266839150,0.15306456,67669.0,67668.0,0.04012565]
[1718266839356,0.15306456,67669.0,67668.0,0.03512565]
[1718266841690,0.15306456,67669.0,67668.0,0.12418532]
[1718266843003,0.15306456,67669.0,67668.0,0.12390832]
[1718266844707,0.01316456,67669.0,67668.0,0.19606828]
[1718266844929,0.01316456,67669.0,67668.0,0.24606828]
[1718266845165,0.00086,67669.0,67668.0,0.24606828]
[1718266845375,0.00086,67669.0,67668.0,0.17390832]
[1718266845796,0.00086,67669.0,67668.0,0.08484865]
[1718266846008,0.01310992,67669.0,67668.0,0.08484865]
[1718266846222,0.00086,67669.0,67668.0,0.08484865]
[1718266846505,0.01311271,67669.0,67668.0,0.08484865]
[1718266846722,0.01311271,67669.0,67668.0,0.17390832]
[1718266847095,0.01311271,67669.0,67668.0,0.08484865]
[1718266848968,0.01311271,67669.0,67668.0,0.17390832]
[1718266849290,0.00086,67669.0,67668.0,0.17390832]
[1718266849714,0.00086,67669.0,67668.0,0.17485432]
[1718266850499,0.00086,67669.0,67668.0,0.15631208]
[1718266850728,0.00086,67669.0,67668.0,0.17485432]
[1718266854043,0.13846,67669.0,67668.0,0.03579465]
[1718266854461,0.15071271,67669.0,67668.0,0.03579465]
[1718266854926,0.15071271,67669.0,67668.0,0.03279465]
[1718266856055,0.15171271,67669.0,67668.0,0.03279465]
[1718266856274,0.14425241,67669.0,67668.0,0.000946]
[1718266856503,0.15649708,67669.0,67668.0,0.000946]
[1718266856724,0.15649708,67669.0,67668.0,0.003946]
[1718266857149,0.15649708,67669.0,67668.0,0.000946]
[1718266857432,0.15749708,67669.0,67668.0,0.000946]
[1718266857670,0.15749708,67669.0,67668.0,0.00038074]
[1718266857940,0.16249708,67669.0,67668.0,0.00038074]
[1718266861469,0.31906018,67669.0,67668.0,0.00038074]
[1718266861898,0.26459033,67669.0,67668.0,0.00038074]
[1718266862107,0.16249708,67669.0,67668.0,0.00038074]
[1718266862684,0.16160467,67669.0,67668.0,0.00038074]
[1718266862912,0.16249708,67669.0,67668.0,0.00038074]
[1718266863123,0.16249708,67669.0,67668.0,0.00010374]
[1718266864121,0.31902046,67669.0,67668.0,0.00010374]
[1718266865352,0.31812805,67669.0,67668.0,0.00010374]
[1718266865801,0.31902046,67669.0,67668.0,0.00010374]
[1718266867099,0.31902046,67669.0,67664.0,0.03184865]
[1718266867100,0.139,67665.0,67664.0,0.03184865]
[1718266867543,0.15118851,67665.0,67664.0,0.03184865]
[1718266868642,0.15118851,67665.0,67664.0,0.03484865]
[1718266869970,0.15118851,67665.0,67664.0,0.03365122]
[1718266873119,0.15118851,67665.0,67664.0,0.03337422]
[1718266873568,0.15208092,67665.0,67664.0,0.03337422]
[1718266874247,0.15118851,67665.0,67664.0,0.03337422]
[1718266875099,0.15208092,67665.0,67664.0,0.003]
[1718266875514,0.30850733,67665.0,67664.0,0.003]
[1718266875960,0.25405471,67665.0,67664.0,0.003]
[1718266876614,0.31555572,67665.0,67664.0,0.004]
[1718266877499,0.31555572,67665.0,67664.0,0.001]
[1718266877929,0.31955572,67665.0,67664.0,0.001]
[1718266878985,0.36167555,67665.0,67664.0,0.001]
[1718266879613,0.31955572,67665.0,67664.0,0.001]
[1718266880049,0.31866331,67665.0,67664.0,0.001]
[1718266880505,0.2641623,67665.0,67664.0,0.001]
[1718266880740,0.16218851,67665.0,67664.0,0.001]
[1718266882954,0.16218851,67665.0,67664.0,0.00043471]
[1718266883174,0.16308092,67665.0,67664.0,0.00043471]
[1718266883383,0.31940809,67665.0,67664.0,0.00043471]
[1718266884022,0.31940809,67665.0,67664.0,0.00138071]
[1718266884521,0.62591264,67665.0,67664.0,0.00138071]
[1718266885744,0.69721264,67665.0,67664.0,0.00138071]
[1718266885944,0.72669521,67665.0,67664.0,0.00138071]
[1718266886150,0.7169572,67665.0,67664.0,0.00138071]
[1718266888532,0.86127713,67665.0,67664.0,0.00138071]
[1718266889016,0.86125239,67665.0,67664.0,0.00138071]
[1718266889592,0.89073496,67665.0,67664.0,0.00138071]
[1718266889791,0.89074555,67665.0,67664.0,0.00138071]
[1718266891946,0.86126298,67665.0,67664.0,0.00138071]
[1718266893204,0.86121589,67665.0,67664.0,0.00110371]
[1718266893634,0.89069846,67665.0,67664.0,0.00110371]
[1718266894038,0.8709539,67665.0,67664.0,0.00110371]
[1718266894240,0.84147133,67665.0,67664.0,0.00110371]
[1718266895459,0.8709539,67665.0,67664.0,0.00110371]
[1718266898880,0.84147133,67665.0,67664.0,0.00110371]
[1718266900529,0.88567327,67665.0,67664.0,0.00110371]
[1718266901191,0.88568551,67665.0,67664.0,0.00110371]
[1718266901410,0.99159527,67665.0,67664.0,0.00110371]
[1718266902081,0.53017317,67665.0,67664.0,0.06690371]
[1718266902301,0.48597123,67665.0,67664.0,0.14320371]
[1718266902512,0.02318851,67665.0,67664.0,0.14320371]
[1718266902940,0.12344001,67665.0,67664.0,0.14320371]
[1718266903156,0.17792236,67665.0,67664.0,0.14292106]
[1718266904086,0.17792137,67665.0,67664.0,0.14292106]
[1718266906365,0.07766987,67665.0,67664.0,0.14292106]
[1718266906566,0.17783532,67665.0,67664.0,0.14292106]
[1718266906970,0.19717888,67665.0,67664.0,0.14292106]
[1718266907164,0.17872773,67665.0,67664.0,0.00082106]
[1718266907615,0.17783532,67665.0,67664.0,0.00082106]
[1718266908638,0.48435981,67665.0,67664.0,0.00082106]
[1718266909409,0.17783532,67665.0,67664.0,0.00082106]
[1718266909645,0.17872773,67665.0,67664.0,0.00082106]
[1718266909853,0.2328668,67665.0,67664.0,0.00082106]
[1718266910059,0.23375921,67665.0,67664.0,0.00082106]
[1718266910975,0.5402927,67665.0,67664.0,0.00082106]
[1718266911385,0.17872773,67665.0,67664.0,0.00082106]
[1718266913257,0.02408092,67665.0,67664.0,0.00082106]
[1718266913645,0.48522443,67665.0,67664.0,0.00082106]
[1718266914423,0.55652443,67665.0,67664.0,0.00082106]
[1718266917362,0.55652443,67665.0,67664.0,0.00025577]
[1718266918408,0.55738443,67665.0,67664.0,0.00025577]
[1718266920915,0.48519202,67665.0,67664.0,0.00025577]
[1718266921930,0.17865822,67665.0,67664.0,0.00025577]
[1718266922105,0.48518929,67665.0,67664.0,0.00025577]
[1718266922304,0.17865822,67665.0,67664.0,0.00025577]
[1718266922767,0.48518929,67665.0,67664.0,0.00025577]
[1718266923288,0.48518929,67665.0,67658.0,0.141]
[1718266923289,0.000304,67664.0,67658.0,0.141]
[1718266923509,0.15461278,67663.0,67658.0,0.141]
[1718266923673,0.01217558,67663.0,67658.0,0.141]
[1718266924508,0.01217558,67663.0,67658.0,0.144]
[1718266924908,0.15443765,67662.0,67658.0,0.141]
[1718266925254,0.000304,67664.0,67658.0,0.144]
[1718266925483,0.01217558,67661.0,67658.0,0.144]
[1718266925703,0.00089241,67663.0,67658.0,0.144]
[1718266925923,0.01217558,67660.0,67658.0,0.144]
[1718266926309,0.000304,67659.0,67658.0,0.144]
[1718266926536,0.01247958,67659.0,67658.0,0.144]
[1718266926774,0.000304,67659.0,67658.0,0.141]
[1718266926950,0.000304,67659.0,67658.0,0.142]
[1718266927302,0.000304,67659.0,67658.0,0.141]
[1718266927498,0.000304,67659.0,67658.0,0.23005967]
[1718266927908,0.004304,67659.0,67658.0,0.23005967]
[1718266928687,0.004304,67659.0,67658.0,0.141]
[1718266933203,0.004304,67659.0,67658.0,0.14071733]
[1718266935290,0.01647788,67659.0,67658.0,0.14071733]
[1718266935493,0.004304,67659.0,67658.0,0.14071733]
[1718266935701,0.01647788,67659.0,67658.0,0.14071733]
[1718266935909,0.004304,67659.0,67658.0,0.14071733]
[1718266936112,0.01647788,67659.0,67658.0,0.14071733]
[1718266936312,0.004304,67659.0,67658.0,0.14071733]
[1718266936553,0.01647788,67659.0,67658.0,0.14071733]
[1718266936757,0.004304,67659.0,67658.0,0.14071733]
[1718266936975,0.01647788,67659.0,67658.0,0.14071733]
[1718266937178,0.004304,67659.0,67658.0,0.14071733]
[1718266937380,0.01647788,67659.0,67658.0,0.14071733]
[1718266937590,0.004304,67659.0,67658.0,0.14071733]
[1718266938039,0.01647788,67659.0,67658.0,0.14071733]
[1718266938254,0.004304,67659.0,67658.0,0.14071733]
[1718266938457,0.01647788,67659.0,67658.0,0.14071733]
[1718266938662,0.004304,67659.0,67658.0,0.14071733]
[1718266938871,0.01647788,67659.0,67658.0,0.14071733]
[1718266939091,0.004304,67659.0,67658.0,0.14071733]
[1718266939299,0.01647788,67659.0,67658.0,0.14071733]
[1718266939521,0.004304,67659.0,67658.0,0.14071733]
[1718266939731,0.01647788,67659.0,67658.0,0.14071733]
[1718266939937,0.004304,67659.0,67658.0,0.14071733]
[1718266940161,0.01647788,67659.0,67658.0,0.14071733]
[1718266940393,0.004304,67659.0,67658.0,0.14071733]
[1718266940610,0.01647788,67659.0,67658.0,0.14071733]
[1718266940815,0.004304,67659.0,67658.0,0.14071733]
[1718266941021,0.01647788,67659.0,67658.0,0.14071733]
[1718266941224,0.004304,67659.0,67658.0,0.229777]
[1718266945310,0.004304,67659.0,67658.0,0.14071733]
[1718266946081,0.004304,67659.0,67658.0,0.14043466]
[1718266947117,0.10410702,67659.0,67658.0,0.14043466]
[1718266947318,0.1706811,67659.0,67658.0,0.14043466]
[1718266948385,0.17085377,67659.0,67658.0,0.14043466]
[1718266948601,0.17085421,67659.0,67658.0,0.14043466]
[1718266949626,0.01647788,67659.0,67658.0,0.14043466]
[1718266950041,0.004304,67659.0,67658.0,0.22949433]
[1718266950294,0.01647526,67659.0,67658.0,0.22949433]
[1718266950727,0.004304,67659.0,67658.0,0.22949433]
[1718266951980,0.004304,67659.0,67658.0,0.14043466]
[1718266952323,0.004304,67659.0,67658.0,0.14138066]
[1718266956277,0.004304,67659.0,67658.0,0.14109799]
[1718266957000,0.01647526,67659.0,67658.0,0.14109799]
[1718266957243,0.004304,67659.0,67658.0,0.14109799]
[1718266957473,0.01647526,67659.0,67658.0,0.21161542]
[1718266957689,0.004304,67659.0,67658.0,0.14109799]
[1718266957904,0.01647526,67659.0,67658.0,0.21161542]
[1718266958113,0.01647526,67659.0,67658.0,0.14109799]
[1718266959574,0.01647526,67659.0,67658.0,0.21161542]
[1718266959932,0.01647526,67659.0,67658.0,0.14109799]
[1718266961205,0.01647526,67659.0,67658.0,0.000946]
[1718266961407,0.01647526,67659.0,67658.0,0.07146343]
[1718266962814,0.01647526,67659.0,67658.0,0.000946]
[1718266963225,0.01647526,67659.0,67658.0,0.000386]
[1718266969127,0.09807526,67659.0,67658.0,0.000386]
[1718266973225,0.09807526,67659.0,67658.0,0.00010333]
[1718266975352,0.22986767,67659.0,67658.0,0.00010333]
[1718266975560,0.61522193,67659.0,67658.0,0.00010333]
[1718266975818,0.77833063,67659.0,67658.0,0.00010333]
[1718266976479,0.86294055,67659.0,67658.0,0.00010333]
[1718266976647,0.86294196,67659.0,67658.0,0.00010333]
[1718266976858,0.86694196,67659.0,67658.0,0.00010333]
[1718266977293,0.77433063,67659.0,67658.0,0.00010333]
[1718266977509,0.85631117,67659.0,67658.0,0.00010333]
[1718266977710,0.96967835,67659.0,67658.0,0.00110333]
[1718266977903,1.0116311,67659.0,67658.0,0.00110333]
[1718266978122,0.92301977,67659.0,67658.0,0.00110333]
[1718266978333,1.04107126,67659.0,67658.0,0.00110333]
[1718266978555,0.92301977,67659.0,67658.0,0.00110333]
[1718266979924,0.82369588,67659.0,67658.0,0.00110333]
[1718266980165,1.01246245,67659.0,67658.0,0.00110333]
[1718266980596,1.04123739,67659.0,67658.0,0.00110333]
[1718266980799,0.92391816,67659.0,67658.0,0.00110333]
[1718266981005,1.01012428,67659.0,67658.0,0.00110333]
[1718266982087,0.92158419,67659.0,67658.0,0.00110333]
[1718266982295,1.01010454,67659.0,67658.0,0.00110333]
[1718266982741,1.12717934,67659.0,67658.0,0.00110333]
[1718266983334,1.03865899,67659.0,67658.0,0.00054333]
[1718266983518,0.86896782,67659.0,67658.0,0.00054333]
[1718266985053,0.75189302,67659.0,67658.0,0.00054333]
[1718266985284,0.77006548,67659.0,67658.0,0.00054333]
[1718266985973,0.76340368,67659.0,67658.0,0.00148933]
[1718266986407,0.76426368,67659.0,67658.0,0.00148933]
[1718266986645,0.69788433,67659.0,67658.0,0.00148933]
[1718266987494,0.69788433,67659.0,67658.0,0.00020458]
[1718266988647,0.60044234,67659.0,67658.0,0.00020458]
[1718266989108,0.64465634,67659.0,67658.0,0.00020458]
[1718266989306,0.60044234,67659.0,67658.0,0.00020458]
[1718266989925,0.74632771,67659.0,67658.0,0.00020458]
[1718266990332,0.70211371,67659.0,67658.0,0.00020458]
[1718266990548,0.74632771,67659.0,67658.0,0.00020458]
[1718266990755,0.74588208,67659.0,67658.0,0.00020458]
[1718266990946,0.85199196,67659.0,67658.0,0.00020458]
[1718266993425,0.80778391,67659.0,67658.0,0.00020458]
[1718266993563,0.85198147,67659.0,67658.0,0.00020458]
[1718266994229,0.83726648,67659.0,67658.0,0.00020458]
[1718266994504,0.88146404,67659.0,67658.0,0.00020458]
[1718266994945,0.85198147,67659.0,67658.0,0.00020458]
[1718266995363,0.80778391,67659.0,67658.0,0.00020458]
[1718266995566,0.70611254,67659.0,67658.0,0.00020458]
[1718266995710,0.80782444,67659.0,67658.0,0.00020458]
[1718266996116,0.83730701,67659.0,67658.0,0.00020458]
[1718266996405,0.83730701,67659.0,67657.0,0.0008679]
[1718266996406,0.00089241,67658.0,67657.0,0.0008679]
[1718266996526,0.44656755,67658.0,67657.0,0.0008679]
[1718266996723,0.45867128,67658.0,67657.0,0.0008679]
[1718266997730,0.46467128,67658.0,67657.0,0.0018679]
[1718266997951,0.5603021,67658.0,67657.0,0.0018679]
[1718266998976,0.4585902,67658.0,67657.0,0.0018679]
[1718266999685,0.55597715,67658.0,67657.0,0.0018679]
[1718267001350,0.58545972,67658.0,67657.0,0.0018679]
[1718267001956,0.55597715,67658.0,67657.0,0.0018679]
[1718267003435,0.55597715,67658.0,67657.0,0.0013079]
[1718267004277,0.4585902,67658.0,67657.0,0.0013079]
[1718267004427,0.66309493,67658.0,67657.0,0.0013079]
[1718267004631,0.63361236,67658.0,67657.0,0.0013079]
[1718267004835,0.66309493,67658.0,67657.0,0.0013079]
[1718267005723,0.66453669,67658.0,67657.0,0.0013079]
[1718267005936,0.57067277,67658.0,67657.0,0.0013079]
[1718267006185,0.66454965,67658.0,67657.0,0.0013079]
[1718267006375,0.6792592,67658.0,67657.0,0.0013079]
[1718267006546,0.70874177,67658.0,67657.0,0.0013079]
[1718267006750,0.6792592,67658.0,67657.0,0.0013079]
[1718267007191,0.70874177,67658.0,67657.0,0.0013079]
[1718267012256,0.66454965,67658.0,67657.0,0.0013079]
[1718267014808,0.63506708,67658.0,67657.0,0.0013079]
[1718267015041,0.65324661,67658.0,67657.0,0.0013079]
[1718267015455,0.71953479,67658.0,67657.0,0.0013079]
[1718267016273,0.74901736,67658.0,67657.0,0.0013079]
[1718267017549,0.68132277,67658.0,67657.0,0.0013079]
[1718267018276,1.00501562,67658.0,67657.0,0.0013079]
[1718267019957,1.00587562,67658.0,67657.0,0.0013079]
[1718267020168,1.02800283,67658.0,67657.0,0.0013079]
[1718267021095,1.02801273,67658.0,67657.0,0.0013079]
[1718267021302,0.91737671,67658.0,67657.0,0.0013079]
[1718267022420,0.89919718,67658.0,67657.0,0.0013079]
[1718267024506,0.8000108,67658.0,67657.0,0.0013079]
[1718267024724,0.89911808,67658.0,67657.0,0.0013079]
[1718267026364,0.91682769,67658.0,67657.0,0.0013079]
[1718267032480,0.90278333,67658.0,67657.0,0.0013079]
[1718267035340,0.95717608,67658.0,67657.0,0.0013079]
[1718267035991,0.95606717,67658.0,67657.0,0.0013079]
[1718267037056,0.93835756,67658.0,67657.0,0.0013079]
[1718267038424,0.93657699,67658.0,67657.0,0.0013079]
[1718267039018,0.85397699,67658.0,67657.0,0.0013079]
[1718267039647,0.8714701,67658.0,67657.0,0.0013079]
[1718267041253,0.87151024,67658.0,67657.0,0.0013079]
[1718267045276,0.84202767,67658.0,67657.0,0.0013079]
[1718267045484,0.84106026,67658.0,67657.0,0.0013079]
[1718267046142,0.87054283,67658.0,67657.0,0.0013079]
[1718267047694,0.94963591,67658.0,67657.0,0.0013079]
[1718267048152,0.87023591,67658.0,67657.0,0.0013079]
[1718267048599,0.84075334,67658.0,67657.0,0.0013079]
[1718267051118,0.60831728,67658.0,67657.0,0.0013079]
[1718267051339,0.8413746,67658.0,67657.0,0.0013079]
[1718267052291,0.87085717,67658.0,67657.0,0.0013079]
[1718267052511,0.8413746,67658.0,67657.0,0.0013079]
[1718267052952,0.82388149,67658.0,67657.0,0.0013079]
[1718267053927,0.85336406,67658.0,67657.0,0.0013079]
[1718267054570,0.82388149,67658.0,67657.0,0.0013079]
[1718267054725,0.82381529,67658.0,67657.0,0.0013079]
[1718267055765,0.82369081,67658.0,67657.0,0.0013079]
[1718267057648,0.84185461,67658.0,67657.0,0.0013079]
[1718267059578,0.60892177,67658.0,67657.0,0.0013079]
[1718267059781,0.84191349,67658.0,67657.0,0.0013079]
[1718267060197,0.84485942,67658.0,67657.0,0.0013079]
[1718267061196,0.60701626,67658.0,67657.0,0.0767079]
[1718267061400,0.71784762,67658.0,67657.0,0.1390079]
[1718267061821,0.60701626,67658.0,67657.0,0.1390079]
[1718267063345,0.60951878,67658.0,67657.0,0.1390079]
[1718267064370,0.69317172,67658.0,67657.0,0.1390079]
[1718267067322,0.67500792,67658.0,67657.0,0.1390079]
[1718267068595,0.67498751,67658.0,67657.0,0.1390079]
[1718267069902,0.69273334,67658.0,67657.0,0.1390079]
[1718267071241,0.69207162,67658.0,67657.0,0.1390079]
[1718267073614,0.60343818,67658.0,67657.0,0.1390079]
[1718267073811,0.69207162,67658.0,67657.0,0.1390079]
[1718267074308,0.60343818,67658.0,67657.0,0.1390079]
[1718267074724,0.60300333,67658.0,67657.0,0.1390079]
[1718267075776,0.60289509,67658.0,67657.0,0.1390079]
[1718267077637,0.69152469,67658.0,67657.0,0.1390079]
[1718267078291,0.60289509,67658.0,67657.0,0.1390079]
[1718267081275,0.58514926,67658.0,67657.0,0.1390079]
[1718267082727,0.58513816,67658.0,67657.0,0.1390079]
[1718267083725,0.58731237,67658.0,67657.0,0.1390079]
[1718267085592,0.6049696,67658.0,67657.0,0.1390079]
[1718267086764,0.6049696,67658.0,67657.0,0.0013079]
[1718267087195,0.60477007,67658.0,67657.0,0.0013079]
[1718267087805,0.69339241,67658.0,67657.0,0.0013079]
[1718267088602,0.69341413,67658.0,67657.0,0.0013079]
[1718267089898,0.69134027,67658.0,67657.0,0.0013079]
[1718267091203,0.69112514,67658.0,67657.0,0.0013079]
[1718267094173,0.67346791,67658.0,67657.0,0.0013079]
[1718267095944,0.69100261,67658.0,67657.0,0.0013079]
[1718267099152,0.60236839,67658.0,67657.0,0.0013079]
[1718267100326,0.60219817,67658.0,67657.0,0.0013079]
[1718267101037,0.54781051,67658.0,67657.0,0.0013079]
[1718267101276,0.6021596,67658.0,67657.0,0.0013079]
[1718267105458,0.83489544,67658.0,67657.0,0.0013079]
[1718267105682,1.15861274,67658.0,67657.0,0.0013079]
[1718267106124,1.04779544,67658.0,67657.0,0.0013079]
[1718267106967,0.81108912,67658.0,67657.0,0.0013079]
[1718267107178,1.04555928,67658.0,67657.0,0.0013079]
[1718267108008,1.04645169,67658.0,67657.0,0.0013079]
[1718267108360,1.02891699,67658.0,67657.0,0.0013079]
[1718267109582,0.79444683,67658.0,67657.0,0.0013079]
[1718267109787,1.04618892,67658.0,67657.0,0.0013079]
[1718267112824,0.95777301,67658.0,67657.0,0.0013079]
[1718267113447,0.9576276,67658.0,67657.0,0.0013079]
[1718267115212,0.95673519,67658.0,67657.0,0.0013079]
[1718267115430,0.88543519,67658.0,67657.0,0.0013079]
[1718267115677,1.00294438,67658.0,67657.0,0.0013079]
[1718267115889,0.92664496,67658.0,67657.0,0.0013079]
[1718267117374,0.92753737,67658.0,67657.0,0.0013079]
[1718267117791,0.81673091,67658.0,67657.0,0.0013079]
[1718267118008,0.81639089,67658.0,67657.0,0.0013079]
[1718267118424,0.8172833,67658.0,67657.0,0.0013079]
[1718267119319,0.84676587,67658.0,67657.0,0.0013079]
[1718267119546,1.07509548,67658.0,67657.0,0.0013079]
[1718267120046,1.10457805,67658.0,67657.0,0.0013079]
[1718267120506,1.07509548,67658.0,67657.0,0.0013079]
[1718267121750,1.07422156,67658.0,67657.0,0.0013079]
[1718267122131,1.05630087,67658.0,67657.0,0.0013079]
[1718267122540,0.91310087,67658.0,67657.0,0.0013079]
[1718267124063,0.91318664,67658.0,67657.0,0.0013079]
[1718267126387,0.93114671,67658.0,67657.0,0.0013079]
[1718267126910,0.92955281,67658.0,67657.0,0.0013079]
[1718267127829,0.9306036,67658.0,67657.0,0.0013079]
[1718267129533,0.60153615,67658.0,67657.0,0.0013079]
[1718267129741,0.93018608,67658.0,67657.0,0.0013079]
[1718267134478,0.91222601,67658.0,67657.0,0.0013079]
[1718267139763,0.93019013,67658.0,67657.0,0.0013079]
[1718267140944,0.93027621,67658.0,67657.0,0.0013079]
[1718267141697,0.81566403,67658.0,67657.0,0.0013079]
[1718267142734,0.81629035,67658.0,67657.0,0.0013079]
[1718267146625,0.92623123,67658.0,67657.0,0.0013079]
[1718267146818,0.59977801,67658.0,67657.0,0.21606786]
[1718267147430,0.32885009,67658.0,67657.0,0.21606786]
[1718267147544,0.32885009,67658.0,67657.0,0.1439079]
[1718267147972,0.32885009,67658.0,67657.0,0.16245014]
[1718267148185,0.28452676,67658.0,67657.0,0.16245014]
[1718267148385,0.28452676,67658.0,67657.0,0.1439079]
[1718267149024,0.32885009,67658.0,67657.0,0.1439079]
[1718267149428,0.31088597,67658.0,67657.0,0.1439079]
[1718267149689,0.26655438,67658.0,67657.0,0.1439079]
[1718267151283,0.31086501,67658.0,67657.0,0.1439079]
[1718267151937,0.31086338,67658.0,67657.0,0.1439079]